[Event "Titled Tuesday Blitz August 3 2021"]
[White "He, Anthony"]
[Black "Srihari L R"]
[WhiteFideId "2088215"]
[BlackFideId "46617116"]
[WhiteElo "2353"]
[BlackElo "2121"]
[Result "0-1"]
[Round "09"]
[TimeControl "180+1"]
[Date "2021.08.03"]
[WhiteClock "0:00:02"]
[BlackClock "0:00:09"]

1. d4 {[%clk 0:03:00]}  d5 {[%clk 0:02:51]} 2. c4 {[%clk 0:03:00]}  e6 {[%clk 0:02:51]} 3. cxd5 {[%clk 0:02:59]}  exd5 {[%clk 0:02:51]} 4. Nc3 {[%clk 0:02:59]}  c5 {[%clk 0:02:49]} 5. Nf3 {[%clk 0:02:57]}  Nc6 {[%clk 0:02:49]} 6. g3 {[%clk 0:02:53]}  Nf6 {[%clk 0:02:48]} 7. Bg2 {[%clk 0:02:53]}  cxd4 {[%clk 0:02:49]} 8. Nxd4 {[%clk 0:02:53]}  Bc5 {[%clk 0:02:49]} 9. Nb3 {[%clk 0:02:52]}  Bb6 {[%clk 0:02:49]} 10. O-O {[%clk 0:02:51]}  d4 {[%clk 0:02:49]} 11. Ne4 {[%clk 0:02:49]}  Nxe4 {[%clk 0:02:48]} 12. Bxe4 {[%clk 0:02:50]}  O-O {[%clk 0:02:48]} 13. Bf4 {[%clk 0:02:49]}  Re8 {[%clk 0:02:47]} 14. Bg2 {[%clk 0:02:49]}  Bg4 {[%clk 0:02:43]} 15. Re1 {[%clk 0:02:49]}  Qf6 {[%clk 0:02:39]} 16. h3 {[%clk 0:02:46]}  Bh5 {[%clk 0:02:39]} 17. Nd2 {[%clk 0:02:41]}  g5 {[%clk 0:02:30]} 18. g4 {[%clk 0:02:35]}  Qxf4 {[%clk 0:02:26]} 19. gxh5 {[%clk 0:02:34]}  Ba5 {[%clk 0:02:25]} 20. e3 {[%clk 0:02:08]}  dxe3 {[%clk 0:02:21]} 21. fxe3 {[%clk 0:02:09]}  Rxe3 {[%clk 0:02:20]} 22. Rf1 {[%clk 0:02:09]}  Qg3 {[%clk 0:01:45]} 23. Nc4 {[%clk 0:01:53]}  Bc7 {[%clk 0:01:32]} 24. Nxe3 {[%clk 0:01:52]}  Qxe3+ {[%clk 0:01:32]} 25. Rf2 {[%clk 0:01:44]}  Bb6 {[%clk 0:01:16]} 26. Qf3 {[%clk 0:01:42]}  Qxf3 {[%clk 0:01:00]} 27. Bxf3 {[%clk 0:01:41]}  Rd8 {[%clk 0:01:00]} 28. Rf1 {[%clk 0:01:26]}  Rd2 {[%clk 0:00:57]} 29. Kg2 {[%clk 0:01:24]}  Bxf2 {[%clk 0:00:56]} 30. Rxf2 {[%clk 0:01:25]}  Rxf2+ {[%clk 0:00:55]} 31. Kxf2 {[%clk 0:01:26]}  Na5 {[%clk 0:00:55]} 32. Bd5 {[%clk 0:01:24]}  Kf8 {[%clk 0:00:51]} 33. Ke3 {[%clk 0:01:23]}  Ke7 {[%clk 0:00:43]} 34. Ke4 {[%clk 0:01:23]}  h6 {[%clk 0:00:42]} 35. Kf5 {[%clk 0:01:23]}  Nc6 {[%clk 0:00:41]} 36. a3 {[%clk 0:01:20]}  Nd4+ {[%clk 0:00:39]} 37. Ke5 {[%clk 0:01:19]}  Nc6+ {[%clk 0:00:36]} 38. Kf5 {[%clk 0:01:19]}  Nd8 {[%clk 0:00:35]} 39. Ke5 {[%clk 0:01:18]}  Ne6 {[%clk 0:00:33]} 40. Bxb7 {[%clk 0:01:09]}  Nf4 {[%clk 0:00:33]} 41. h4 {[%clk 0:01:04]}  Nxh5 {[%clk 0:00:31]} 42. hxg5 {[%clk 0:01:01]}  hxg5 {[%clk 0:00:32]} 43. Kf5 {[%clk 0:01:00]}  f6 {[%clk 0:00:31]} 44. Bf3 {[%clk 0:01:01]}  Ng7+ {[%clk 0:00:30]} 45. Kg6 {[%clk 0:00:59]}  Ne6 {[%clk 0:00:30]} 46. b4 {[%clk 0:00:59]}  Nd4 {[%clk 0:00:26]} 47. Be4 {[%clk 0:00:50]}  g4 {[%clk 0:00:25]} 48. a4 {[%clk 0:00:34]}  Ke6 {[%clk 0:00:21]} 49. Kh5 {[%clk 0:00:26]}  f5 {[%clk 0:00:20]} 50. Ba8 {[%clk 0:00:25]}  Ke5 {[%clk 0:00:19]} 51. b5 {[%clk 0:00:20]}  g3 {[%clk 0:00:19]} 52. Kh4 {[%clk 0:00:18]}  f4 {[%clk 0:00:19]} 53. Kg4 {[%clk 0:00:18]}  Nc2 {[%clk 0:00:14]} 54. a5 {[%clk 0:00:18]}  Ne3+ {[%clk 0:00:14]} 55. Kf3 {[%clk 0:00:17]}  Nc4 {[%clk 0:00:15]} 56. b6 {[%clk 0:00:13]}  axb6 {[%clk 0:00:12]} 57. a6 {[%clk 0:00:13]}  b5 {[%clk 0:00:12]} 58. Bc6 {[%clk 0:00:09]}  b4 {[%clk 0:00:11]} 59. a7 {[%clk 0:00:08]}  Nb6 {[%clk 0:00:11]} 60. Ba4 {[%clk 0:00:02]}  Kd4 {[%clk 0:00:09]} 0-1


[Site "https://www.chess.com"]

[Event "Titled Tuesday Blitz August 3 2021"]
[White "Hjartarson, Johann"]
[Black "Salinas Herrera, Pablo"]
[WhiteFideId "2300044"]
[BlackFideId "3407128"]
[WhiteElo "2610"]
[BlackElo "2816"]
[Result "0-1"]
[Round "09"]
[TimeControl "180+1"]
[Date "2021.08.03"]
[WhiteClock "0:01:27"]
[BlackClock "0:02:17"]

1. e4 {[%clk 0:03:00]}  e5 {[%clk 0:02:57]} 2. Nf3 {[%clk 0:03:00]}  Nc6 {[%clk 0:02:57]} 3. Bc4 {[%clk 0:03:00]}  Bc5 {[%clk 0:02:57]} 4. O-O {[%clk 0:03:00]}  Nf6 {[%clk 0:02:57]} 5. d3 {[%clk 0:03:00]}  O-O {[%clk 0:02:56]} 6. Nc3 {[%clk 0:02:58]}  h6 {[%clk 0:02:56]} 7. a3 {[%clk 0:02:54]}  a6 {[%clk 0:02:54]} 8. h3 {[%clk 0:02:52]}  d6 {[%clk 0:02:54]} 9. Ne2 {[%clk 0:02:47]}  Be6 {[%clk 0:02:43]} 10. Bxe6 {[%clk 0:02:41]}  fxe6 {[%clk 0:02:40]} 11. Ng3 {[%clk 0:02:40]}  Qe8 {[%clk 0:02:32]} 12. c3 {[%clk 0:02:38]}  Ba7 {[%clk 0:02:30]} 13. d4 {[%clk 0:02:36]}  exd4 {[%clk 0:02:30]} 14. cxd4 {[%clk 0:02:35]}  Qg6 {[%clk 0:02:29]} 15. Qb3 {[%clk 0:01:35]}  Nxe4 {[%clk 0:02:28]} 16. Nxe4 {[%clk 0:01:29]}  Qxe4 {[%clk 0:02:28]} 17. Qxb7 {[%clk 0:01:29]}  Bb6 {[%clk 0:02:17]} 18. Re1 {[%clk 0:01:27]}  Qd5 {[%clk 0:02:17]} 0-1


[Site "https://www.chess.com"]

[Event "Titled Tuesday Blitz August 3 2021"]
[White "Indjic, Aleksandar"]
[Black "Weetik, Vjacheslav"]
[WhiteFideId "911925"]
[BlackFideId "4153472"]
[WhiteElo "2643"]
[BlackElo "2469"]
[Result "0-1"]
[Round "09"]
[TimeControl "180+1"]
[Date "2021.08.03"]
[WhiteClock "0:00:08"]
[BlackClock "0:00:12"]

1. d4 {[%clk 0:03:00]}  d5 {[%clk 0:02:59]} 2. Nf3 {[%clk 0:03:01]}  e6 {[%clk 0:02:59]} 3. c4 {[%clk 0:03:00]}  c6 {[%clk 0:02:59]} 4. Qc2 {[%clk 0:02:59]}  Nd7 {[%clk 0:02:46]} 5. Nbd2 {[%clk 0:02:58]}  f5 {[%clk 0:02:46]} 6. e3 {[%clk 0:02:57]}  Bd6 {[%clk 0:02:43]} 7. b3 {[%clk 0:02:57]}  Ngf6 {[%clk 0:02:43]} 8. Bb2 {[%clk 0:02:57]}  O-O {[%clk 0:02:43]} 9. Ne5 {[%clk 0:02:57]}  Ne4 {[%clk 0:02:30]} 10. a3 {[%clk 0:02:57]}  a5 {[%clk 0:02:12]} 11. Be2 {[%clk 0:02:56]}  Qh4 {[%clk 0:02:07]} 12. g3 {[%clk 0:02:54]}  Qh6 {[%clk 0:02:05]} 13. h3 {[%clk 0:02:23]}  Nxe5 {[%clk 0:01:46]} 14. dxe5 {[%clk 0:02:21]}  Bc5 {[%clk 0:01:31]} 15. cxd5 {[%clk 0:02:10]}  Nxf2 {[%clk 0:01:26]} 16. Rf1 {[%clk 0:01:36]}  Qxe3 {[%clk 0:01:06]} 17. Qc3 {[%clk 0:01:18]}  Nxh3 {[%clk 0:00:36]} 18. d6 {[%clk 0:01:17]}  Bd7 {[%clk 0:00:29]} 19. Nc4 {[%clk 0:01:11]}  Qg5 {[%clk 0:00:25]} 20. Bc1 {[%clk 0:01:08]}  f4 {[%clk 0:00:25]} 21. g4 {[%clk 0:00:55]}  Qh4+ {[%clk 0:00:24]} 22. Kd2 {[%clk 0:00:55]}  f3 {[%clk 0:00:22]} 23. Rxf3 {[%clk 0:00:50]}  Rxf3 {[%clk 0:00:21]} 24. Bxf3 {[%clk 0:00:51]}  Qf2+ {[%clk 0:00:20]} 25. Be2 {[%clk 0:00:51]}  Bd4 {[%clk 0:00:21]} 26. Qxh3 {[%clk 0:00:47]}  Bxa1 {[%clk 0:00:21]} 27. Bb2 {[%clk 0:00:41]}  Bxb2 {[%clk 0:00:20]} 28. Nxb2 {[%clk 0:00:42]}  Qf4+ {[%clk 0:00:20]} 29. Qe3 {[%clk 0:00:41]}  Qxe3+ {[%clk 0:00:20]} 30. Kxe3 {[%clk 0:00:42]}  b6 {[%clk 0:00:20]} 31. Nc4 {[%clk 0:00:41]}  Rb8 {[%clk 0:00:21]} 32. Bf3 {[%clk 0:00:33]}  Kf7 {[%clk 0:00:21]} 33. Be4 {[%clk 0:00:33]}  h6 {[%clk 0:00:19]} 34. Kf4 {[%clk 0:00:33]}  g5+ {[%clk 0:00:20]} 35. Ke3 {[%clk 0:00:34]}  Ke8 {[%clk 0:00:20]} 36. Nd2 {[%clk 0:00:30]}  Kd8 {[%clk 0:00:18]} 37. Bd3 {[%clk 0:00:29]}  Be8 {[%clk 0:00:18]} 38. Bc4 {[%clk 0:00:29]}  Bf7 {[%clk 0:00:17]} 39. Ne4 {[%clk 0:00:29]}  Kd7 {[%clk 0:00:16]} 40. Nf6+ {[%clk 0:00:29]}  Kd8 {[%clk 0:00:16]} 41. Bd3 {[%clk 0:00:27]}  Rb7 {[%clk 0:00:14]} 42. Kd4 {[%clk 0:00:26]}  Ra7 {[%clk 0:00:13]} 43. Be4 {[%clk 0:00:26]}  c5+ {[%clk 0:00:13]} 44. Kc4 {[%clk 0:00:26]}  a4 {[%clk 0:00:12]} 45. b4 {[%clk 0:00:26]}  cxb4 {[%clk 0:00:12]} 46. Kxb4 {[%clk 0:00:27]}  Be8 {[%clk 0:00:12]} 47. Bd3 {[%clk 0:00:25]}  Ra5 {[%clk 0:00:12]} 48. Nxe8 {[%clk 0:00:11]}  Kxe8 {[%clk 0:00:12]} 49. Bb5+ {[%clk 0:00:12]}  Kd8 {[%clk 0:00:13]} 50. Kc4 {[%clk 0:00:12]}  Kc8 {[%clk 0:00:12]} 51. Kb4 {[%clk 0:00:11]}  Kd8 {[%clk 0:00:13]} 52. Kc4 {[%clk 0:00:12]}  Ra7 {[%clk 0:00:12]} 53. Kb4 {[%clk 0:00:08]}  Rf7 {[%clk 0:00:11]} 54. Bc4 {[%clk 0:00:05]}  Rf4 {[%clk 0:00:11]} 55. Kb5 {[%clk 0:00:06]}  Re4 {[%clk 0:00:11]} 56. Bd3 {[%clk 0:00:03]}  Rxe5+ {[%clk 0:00:11]} 57. Kc6 {[%clk 0:00:03]}  Rc5+ {[%clk 0:00:11]} 58. Kxb6 {[%clk 0:00:04]}  Rd5 {[%clk 0:00:11]} 59. Bc2 {[%clk 0:00:04]}  Rxd6+ {[%clk 0:00:11]} 60. Kc5 {[%clk 0:00:05]}  Rd5+ {[%clk 0:00:11]} 61. Kc6 {[%clk 0:00:06]}  Rd4 {[%clk 0:00:11]} 62. Kc5 {[%clk 0:00:06]}  Rf4 {[%clk 0:00:11]} 63. Kd6 {[%clk 0:00:07]}  Rxg4 {[%clk 0:00:11]} 64. Kxe6 {[%clk 0:00:07]}  Rg3 {[%clk 0:00:10]} 65. Kd6 {[%clk 0:00:07]}  Rxa3 {[%clk 0:00:11]} 66. Be4 {[%clk 0:00:07]}  Ra1 {[%clk 0:00:11]} 67. Bd5 {[%clk 0:00:08]}  a3 {[%clk 0:00:12]} 0-1


[Site "https://www.chess.com"]

[Event "Titled Tuesday Blitz August 3 2021"]
[White "Ivanchuk, Vasyl"]
[Black "Golubev, Mikhail"]
[WhiteFideId "14100010"]
[BlackFideId "14100983"]
[WhiteElo "2762"]
[BlackElo "2597"]
[Result "1-0"]
[Round "09"]
[TimeControl "180+1"]
[Date "2021.08.03"]
[WhiteClock "0:01:15"]
[BlackClock "0:00:21"]

1. e4 {[%clk 0:03:00]}  c5 {[%clk 0:02:59]} 2. Nf3 {[%clk 0:02:59]}  d6 {[%clk 0:02:59]} 3. d4 {[%clk 0:02:59]}  cxd4 {[%clk 0:03:00]} 4. Nxd4 {[%clk 0:02:59]}  Nf6 {[%clk 0:03:00]} 5. f3 {[%clk 0:03:00]}  Nc6 {[%clk 0:02:54]} 6. c4 {[%clk 0:02:59]}  Qb6 {[%clk 0:02:54]} 7. Nc2 {[%clk 0:02:58]}  g6 {[%clk 0:02:51]} 8. Nc3 {[%clk 0:02:58]}  Bg7 {[%clk 0:02:50]} 9. Rb1 {[%clk 0:02:58]}  O-O {[%clk 0:02:47]} 10. Be3 {[%clk 0:02:58]}  Qa5 {[%clk 0:02:47]} 11. Qd2 {[%clk 0:02:42]}  Be6 {[%clk 0:02:45]} 12. Be2 {[%clk 0:02:35]}  Ne5 {[%clk 0:02:30]} 13. b3 {[%clk 0:02:29]}  Rfc8 {[%clk 0:01:15]} 14. Nd4 {[%clk 0:02:22]}  Bd7 {[%clk 0:01:08]} 15. O-O {[%clk 0:02:19]}  a6 {[%clk 0:01:03]} 16. Rfc1 {[%clk 0:02:16]}  b5 {[%clk 0:00:53]} 17. cxb5 {[%clk 0:02:08]}  axb5 {[%clk 0:00:53]} 18. b4 {[%clk 0:01:38]}  Qa3 {[%clk 0:00:45]} 19. Ndxb5 {[%clk 0:01:34]}  Bxb5 {[%clk 0:00:42]} 20. Nxb5 {[%clk 0:01:30]}  Rxc1+ {[%clk 0:00:41]} 21. Rxc1 {[%clk 0:01:30]}  Qxa2 {[%clk 0:00:40]} 22. Rc8+ {[%clk 0:01:23]}  Bf8 {[%clk 0:00:38]} 23. Qxa2 {[%clk 0:01:16]}  Rxa2 {[%clk 0:00:37]} 24. Nc3 {[%clk 0:01:16]}  Nfd7 {[%clk 0:00:21]} 25. Nxa2 {[%clk 0:01:15]} 1-0


[Site "https://www.chess.com"]

[Event "Titled Tuesday Blitz August 3 2021"]
[White "Kalashian, David"]
[Black "Gupta, Abhijeet"]
[WhiteFideId "13302418"]
[BlackFideId "5010608"]
[WhiteElo "2490"]
[BlackElo "2549"]
[Result "0-1"]
[Round "09"]
[TimeControl "180+1"]
[Date "2021.08.03"]
[WhiteClock "0:00:04"]
[BlackClock "0:01:06"]

1. d4 {[%clk 0:02:59]}  d5 {[%clk 0:02:53]} 2. Nf3 {[%clk 0:02:59]}  Nc6 {[%clk 0:02:53]} 3. Bg5 {[%clk 0:02:59]}  h6 {[%clk 0:02:48]} 4. Bh4 {[%clk 0:02:58]}  g5 {[%clk 0:02:47]} 5. Bg3 {[%clk 0:02:57]}  Bg7 {[%clk 0:02:47]} 6. c3 {[%clk 0:02:54]}  Nf6 {[%clk 0:02:46]} 7. Nbd2 {[%clk 0:02:52]}  Ne4 {[%clk 0:02:47]} 8. Nxe4 {[%clk 0:02:50]}  dxe4 {[%clk 0:02:47]} 9. Nd2 {[%clk 0:02:38]}  f5 {[%clk 0:02:47]} 10. e3 {[%clk 0:02:38]}  e5 {[%clk 0:02:47]} 11. Nc4 {[%clk 0:02:35]}  f4 {[%clk 0:02:35]} 12. Qh5+ {[%clk 0:02:22]}  Kf8 {[%clk 0:02:34]} 13. d5 {[%clk 0:01:36]}  Ne7 {[%clk 0:02:28]} 14. O-O-O {[%clk 0:01:35]}  fxg3 {[%clk 0:01:58]} 15. d6 {[%clk 0:01:35]}  Nc6 {[%clk 0:01:54]} 16. fxg3 {[%clk 0:01:34]}  Be6 {[%clk 0:01:51]} 17. Be2 {[%clk 0:01:21]}  Kg8 {[%clk 0:01:49]} 18. Rhf1 {[%clk 0:01:19]}  Qe8 {[%clk 0:01:42]} 19. dxc7 {[%clk 0:00:56]}  Qxh5 {[%clk 0:01:38]} 20. Bxh5 {[%clk 0:00:56]}  Bxc4 {[%clk 0:01:33]} 21. Bg4 {[%clk 0:00:47]}  Bxf1 {[%clk 0:01:29]} 22. Rxf1 {[%clk 0:00:34]}  h5 {[%clk 0:01:19]} 23. c8=Q+ {[%clk 0:00:26]}  Rxc8 {[%clk 0:01:19]} 24. Bxc8 {[%clk 0:00:25]}  Nd8 {[%clk 0:01:19]} 25. Bf5 {[%clk 0:00:20]}  Rh6 {[%clk 0:01:13]} 26. Bxe4 {[%clk 0:00:20]}  Rd6 {[%clk 0:01:13]} 27. Rd1 {[%clk 0:00:17]}  Rxd1+ {[%clk 0:01:12]} 28. Kxd1 {[%clk 0:00:18]}  b6 {[%clk 0:01:12]} 29. h3 {[%clk 0:00:17]}  Kf7 {[%clk 0:01:12]} 30. c4 {[%clk 0:00:16]}  Kf6 {[%clk 0:01:11]} 31. b4 {[%clk 0:00:16]}  Bf8 {[%clk 0:01:11]} 32. a3 {[%clk 0:00:16]}  a5 {[%clk 0:01:12]} 33. bxa5 {[%clk 0:00:16]}  bxa5 {[%clk 0:01:13]} 34. a4 {[%clk 0:00:16]}  Ne6 {[%clk 0:01:12]} 35. Kc2 {[%clk 0:00:12]}  Bb4 {[%clk 0:01:12]} 36. Bc6 {[%clk 0:00:13]}  Nc5 {[%clk 0:01:12]} 37. Bf3 {[%clk 0:00:10]}  Nxa4 {[%clk 0:01:11]} 38. Bxh5 {[%clk 0:00:10]}  Nc5 {[%clk 0:01:11]} 39. h4 {[%clk 0:00:09]}  a4 {[%clk 0:01:10]} 40. Bd1 {[%clk 0:00:07]}  a3 {[%clk 0:01:09]} 41. Kb1 {[%clk 0:00:07]}  Ne4 {[%clk 0:01:08]} 42. Bg4 {[%clk 0:00:06]}  Nc3+ {[%clk 0:01:06]} 43. Ka1 {[%clk 0:00:06]}  Bc5 {[%clk 0:01:06]} 44. hxg5+ {[%clk 0:00:05]}  Kxg5 {[%clk 0:01:06]} 45. Bf3 {[%clk 0:00:04]}  Bxe3 {[%clk 0:01:06]} 46. c5 {[%clk 0:00:04]}  Bc1 {[%clk 0:01:06]} 0-1


[Site "https://www.chess.com"]

[Event "Titled Tuesday Blitz August 3 2021"]
[White "Karttunen, Mika"]
[Black "Garv Gaur"]
[WhiteFideId "502081"]
[BlackFideId "45030839"]
[WhiteElo "2343"]
[BlackElo "1950"]
[Result "1-0"]
[Round "09"]
[TimeControl "180+1"]
[Date "2021.08.03"]
[WhiteClock "0:00:08"]
[BlackClock "0:00:33"]

1. d4 {[%clk 0:03:00]}  d5 {[%clk 0:02:59]} 2. c4 {[%clk 0:02:58]}  e6 {[%clk 0:02:59]} 3. Nc3 {[%clk 0:02:58]}  Nf6 {[%clk 0:02:59]} 4. Nf3 {[%clk 0:02:57]}  Be7 {[%clk 0:02:59]} 5. Bg5 {[%clk 0:02:55]}  O-O {[%clk 0:02:59]} 6. e3 {[%clk 0:02:53]}  h6 {[%clk 0:02:58]} 7. Bxf6 {[%clk 0:02:51]}  Bxf6 {[%clk 0:02:58]} 8. cxd5 {[%clk 0:02:44]}  exd5 {[%clk 0:02:59]} 9. Bd3 {[%clk 0:02:38]}  Be6 {[%clk 0:02:53]} 10. O-O {[%clk 0:02:36]}  Nd7 {[%clk 0:02:50]} 11. Qc2 {[%clk 0:02:30]}  c5 {[%clk 0:02:45]} 12. Bh7+ {[%clk 0:01:58]}  Kh8 {[%clk 0:02:45]} 13. Bf5 {[%clk 0:01:55]}  cxd4 {[%clk 0:02:34]} 14. exd4 {[%clk 0:01:49]}  Nb6 {[%clk 0:02:34]} 15. Bxe6 {[%clk 0:01:41]}  fxe6 {[%clk 0:02:35]} 16. Rfe1 {[%clk 0:01:38]}  Qd7 {[%clk 0:02:34]} 17. Re2 {[%clk 0:01:34]}  Rfe8 {[%clk 0:02:31]} 18. Rae1 {[%clk 0:01:34]}  Rac8 {[%clk 0:02:31]} 19. Qg6 {[%clk 0:01:25]}  Nc4 {[%clk 0:02:27]} 20. Nd1 {[%clk 0:00:49]}  Kg8 {[%clk 0:02:05]} 21. Ne3 {[%clk 0:00:45]}  Qf7 {[%clk 0:02:00]} 22. Qd3 {[%clk 0:00:38]}  b5 {[%clk 0:01:53]} 23. Ng4 {[%clk 0:00:33]}  a6 {[%clk 0:01:44]} 24. b3 {[%clk 0:00:29]}  Nd6 {[%clk 0:01:43]} 25. Nge5 {[%clk 0:00:27]}  Bxe5 {[%clk 0:01:43]} 26. Nxe5 {[%clk 0:00:25]}  Qf5 {[%clk 0:01:41]} 27. Qe3 {[%clk 0:00:19]}  Ne4 {[%clk 0:01:40]} 28. Rc1 {[%clk 0:00:13]}  Rxc1+ {[%clk 0:01:27]} 29. Qxc1 {[%clk 0:00:12]}  Rf8 {[%clk 0:01:23]} 30. f3 {[%clk 0:00:13]}  Ng5 {[%clk 0:01:21]} 31. h4 {[%clk 0:00:07]}  Nf7 {[%clk 0:01:21]} 32. Qe1 {[%clk 0:00:05]}  Nd6 {[%clk 0:01:16]} 33. Nd7 {[%clk 0:00:04]}  Re8 {[%clk 0:01:11]} 34. Nc5 {[%clk 0:00:04]}  Qf6 {[%clk 0:01:10]} 35. Rxe6 {[%clk 0:00:01]}  Qxd4+ {[%clk 0:01:09]} 36. Kh1 {[%clk 0:00:02]}  Qxc5 {[%clk 0:01:04]} 37. Rxe8+ {[%clk 0:00:01]}  Nxe8 {[%clk 0:01:05]} 38. Qxe8+ {[%clk 0:00:02]}  Kh7 {[%clk 0:01:06]} 39. h5 {[%clk 0:00:02]}  Qc1+ {[%clk 0:01:03]} 40. Kh2 {[%clk 0:00:02]}  Qf4+ {[%clk 0:01:03]} 41. Kg1 {[%clk 0:00:03]}  Qf5 {[%clk 0:01:00]} 42. Kf2 {[%clk 0:00:02]}  Qc2+ {[%clk 0:00:59]} 43. Kg3 {[%clk 0:00:02]}  Qf5 {[%clk 0:01:00]} 44. Kf2 {[%clk 0:00:03]}  d4 {[%clk 0:01:00]} 45. Qe4 {[%clk 0:00:02]}  Qxe4 {[%clk 0:00:39]} 46. fxe4 {[%clk 0:00:02]}  g6 {[%clk 0:00:40]} 47. hxg6+ {[%clk 0:00:02]}  Kxg6 {[%clk 0:00:41]} 48. Ke2 {[%clk 0:00:03]}  Kf6 {[%clk 0:00:41]} 49. Kd3 {[%clk 0:00:03]}  Ke5 {[%clk 0:00:42]} 50. b4 {[%clk 0:00:04]}  h5 {[%clk 0:00:42]} 51. g3 {[%clk 0:00:04]}  Ke6 {[%clk 0:00:36]} 52. Kxd4 {[%clk 0:00:04]}  Kd6 {[%clk 0:00:37]} 53. e5+ {[%clk 0:00:05]}  Ke6 {[%clk 0:00:37]} 54. Ke4 {[%clk 0:00:06]}  Ke7 {[%clk 0:00:32]} 55. Kf5 {[%clk 0:00:06]}  Kf7 {[%clk 0:00:33]} 56. e6+ {[%clk 0:00:07]}  Ke7 {[%clk 0:00:33]} 57. Ke5 {[%clk 0:00:07]}  h4 {[%clk 0:00:33]} 58. gxh4 {[%clk 0:00:08]} 1-0


[Site "https://www.chess.com"]

[Event "Titled Tuesday Blitz August 3 2021"]
[White "Kim, Sergey"]
[Black "Gunina, Valentina"]
[WhiteFideId "13700570"]
[BlackFideId "4167570"]
[WhiteElo "2590"]
[BlackElo "2752"]
[Result "0-1"]
[Round "09"]
[TimeControl "180+1"]
[Date "2021.08.03"]
[WhiteClock "0:00:14"]
[BlackClock "0:00:01"]

1. d4 {[%clk 0:03:00]}  d5 {[%clk 0:02:59]} 2. c4 {[%clk 0:03:00]}  c6 {[%clk 0:02:59]} 3. Nf3 {[%clk 0:03:00]}  Nf6 {[%clk 0:03:00]} 4. Qc2 {[%clk 0:03:00]}  dxc4 {[%clk 0:02:59]} 5. Qxc4 {[%clk 0:02:59]}  Bg4 {[%clk 0:02:59]} 6. Nbd2 {[%clk 0:02:58]}  Nbd7 {[%clk 0:02:59]} 7. e3 {[%clk 0:02:58]}  e6 {[%clk 0:03:00]} 8. Be2 {[%clk 0:02:57]}  Be7 {[%clk 0:03:00]} 9. O-O {[%clk 0:02:56]}  O-O {[%clk 0:03:01]} 10. b4 {[%clk 0:02:50]}  Rc8 {[%clk 0:02:51]} 11. Bb2 {[%clk 0:02:49]}  b5 {[%clk 0:02:43]} 12. Qb3 {[%clk 0:02:48]}  Nd5 {[%clk 0:02:43]} 13. a3 {[%clk 0:02:46]}  a5 {[%clk 0:02:44]} 14. bxa5 {[%clk 0:02:33]}  Qxa5 {[%clk 0:02:43]} 15. Rfc1 {[%clk 0:02:15]}  N7b6 {[%clk 0:02:42]} 16. e4 {[%clk 0:02:06]}  Nf4 {[%clk 0:02:42]} 17. Bf1 {[%clk 0:02:06]}  Na4 {[%clk 0:02:43]} 18. h3 {[%clk 0:01:48]}  Bh5 {[%clk 0:02:35]} 19. Bc3 {[%clk 0:01:37]}  Qa7 {[%clk 0:02:07]} 20. Bb4 {[%clk 0:01:33]}  Rfd8 {[%clk 0:02:06]} 21. Bxe7 {[%clk 0:01:12]}  Qxe7 {[%clk 0:02:03]} 22. Qb4 {[%clk 0:01:10]}  Qxb4 {[%clk 0:01:47]} 23. axb4 {[%clk 0:01:09]}  f5 {[%clk 0:01:27]} 24. exf5 {[%clk 0:01:01]}  exf5 {[%clk 0:01:27]} 25. Ne5 {[%clk 0:00:48]}  Be8 {[%clk 0:00:56]} 26. Nb3 {[%clk 0:00:45]}  Nd5 {[%clk 0:00:52]} 27. Nc5 {[%clk 0:00:41]}  Nxc5 {[%clk 0:00:31]} 28. Rxc5 {[%clk 0:00:40]}  Nxb4 {[%clk 0:00:29]} 29. Ra7 {[%clk 0:00:39]}  Nd5 {[%clk 0:00:22]} 30. Bd3 {[%clk 0:00:33]}  g6 {[%clk 0:00:20]} 31. Kh2 {[%clk 0:00:31]}  Nf6 {[%clk 0:00:20]} 32. Bc2 {[%clk 0:00:27]}  Nd7 {[%clk 0:00:18]} 33. Bb3+ {[%clk 0:00:22]}  Kf8 {[%clk 0:00:17]} 34. Rxc6 {[%clk 0:00:19]}  Nxe5 {[%clk 0:00:12]} 35. Rxc8 {[%clk 0:00:19]}  Nf3+ {[%clk 0:00:11]} 36. gxf3 {[%clk 0:00:18]}  Rxc8 {[%clk 0:00:11]} 37. Be6 {[%clk 0:00:17]}  Rc3 {[%clk 0:00:07]} 38. Kg3 {[%clk 0:00:17]}  b4 {[%clk 0:00:05]} 39. Rb7 {[%clk 0:00:16]}  Rxf3+ {[%clk 0:00:05]} 40. Kh4 {[%clk 0:00:14]}  h6 {[%clk 0:00:01]} 0-1


[Site "https://www.chess.com"]

[Event "Titled Tuesday Blitz August 3 2021"]
[White "Kretov, Evgenij"]
[Black "Urazayev, Arystanbek"]
[WhiteFideId "4167821"]
[BlackFideId "13709810"]
[WhiteElo "2400"]
[BlackElo "2321"]
[Result "1-0"]
[Round "09"]
[TimeControl "180+1"]
[Date "2021.08.03"]
[WhiteClock "0:01:42"]
[BlackClock "0:00:07"]

1. d4 {[%clk 0:03:00]}  d5 {[%clk 0:03:00]} 2. c4 {[%clk 0:03:00]}  e6 {[%clk 0:03:00]} 3. Nc3 {[%clk 0:03:01]}  Nf6 {[%clk 0:03:00]} 4. cxd5 {[%clk 0:03:01]}  exd5 {[%clk 0:03:01]} 5. Bg5 {[%clk 0:03:01]}  c6 {[%clk 0:03:02]} 6. e3 {[%clk 0:03:02]}  Bd6 {[%clk 0:03:03]} 7. Bd3 {[%clk 0:03:02]}  O-O {[%clk 0:03:03]} 8. Qc2 {[%clk 0:03:02]}  h6 {[%clk 0:03:04]} 9. Bh4 {[%clk 0:03:01]}  Re8 {[%clk 0:03:04]} 10. Nge2 {[%clk 0:03:01]}  Nbd7 {[%clk 0:03:05]} 11. O-O {[%clk 0:03:00]}  Bxh2+ {[%clk 0:03:05]} 12. Kxh2 {[%clk 0:03:00]}  Ng4+ {[%clk 0:03:05]} 13. Kg3 {[%clk 0:02:57]}  Ndf6 {[%clk 0:03:05]} 14. Bxf6 {[%clk 0:02:52]}  Qxf6 {[%clk 0:03:05]} 15. Nf4 {[%clk 0:02:46]}  g5 {[%clk 0:03:02]} 16. Nh5 {[%clk 0:02:42]}  Qd6+ {[%clk 0:02:59]} 17. Kf3 {[%clk 0:02:28]}  Nh2+ {[%clk 0:02:28]} 18. Ke2 {[%clk 0:02:28]}  Bg4+ {[%clk 0:02:28]} 19. f3 {[%clk 0:02:28]}  Nxf1 {[%clk 0:02:06]} 20. Rxf1 {[%clk 0:02:27]}  Bxh5 {[%clk 0:02:06]} 21. Rh1 {[%clk 0:02:27]}  Bg6 {[%clk 0:01:43]} 22. Kf2 {[%clk 0:02:24]}  Bxd3 {[%clk 0:01:41]} 23. Qxd3 {[%clk 0:02:24]}  Kg7 {[%clk 0:01:41]} 24. Ne2 {[%clk 0:02:24]}  Qg6 {[%clk 0:01:38]} 25. Qc3 {[%clk 0:02:23]}  h5 {[%clk 0:01:35]} 26. e4 {[%clk 0:02:07]}  dxe4 {[%clk 0:01:34]} 27. Ng3 {[%clk 0:02:07]}  e3+ {[%clk 0:01:14]} 28. Ke2 {[%clk 0:02:04]}  h4 {[%clk 0:01:15]} 29. Ne4 {[%clk 0:01:59]}  Rxe4 {[%clk 0:01:15]} 30. fxe4 {[%clk 0:01:56]}  Qxe4 {[%clk 0:01:16]} 31. Qxe3 {[%clk 0:01:46]}  Re8 {[%clk 0:00:05]} 32. Qxe4 {[%clk 0:01:45]}  Rxe4+ {[%clk 0:00:05]} 33. Kd3 {[%clk 0:01:45]}  Rg4 {[%clk 0:00:06]} 34. Rh2 {[%clk 0:01:44]}  Kg6 {[%clk 0:00:06]} 35. Kc4 {[%clk 0:01:44]}  f5 {[%clk 0:00:07]} 36. Kc5 {[%clk 0:01:42]} 1-0


[Site "https://www.chess.com"]